bitfinex/quotes_SOLUSD_20241126
["timestamp","ask_amount","ask_price","bid_price","bid_amount"]
[1732654591675,13.44220505,231.87,231.8,13.44220505]
[1732654591880,13.44220505,231.88,231.81,13.44220505]
[1732654592058,23.776884,231.88,231.82,13.44220505]
[1732654592253,37.21908905,231.88,231.81,13.44220505]
[1732654592571,23.776884,231.88,231.82,13.44220505]
[1732654592751,23.776884,231.89,231.83,13.44220505]
[1732654592948,37.21908905,231.89,231.81,13.44220505]
[1732654593359,23.776884,231.89,231.83,13.44220505]
[1732654594461,13.44220505,231.94,231.87,13.44220505]
[1732654595367,13.44220505,231.93,231.86,13.44220505]
[1732654595570,13.44220505,231.92,231.84,13.44220505]
[1732654595874,13.44220505,231.91,231.84,13.44220505]
[1732654596053,23.776884,231.9,231.84,13.44220505]
[1732654596255,37.21908905,231.9,231.83,13.44220505]
[1732654596874,23.776884,231.9,231.84,13.44220505]
[1732654597453,39.37518905,231.9,231.82,13.44220505]
[1732654597759,13.44220505,231.89,231.81,13.44220505]
[1732654597968,39.37518905,231.9,231.82,13.44220505]
[1732654598177,25.932984,231.9,231.84,13.44220505]
[1732654598378,13.44220505,231.89,231.81,13.44220505]
[1732654598599,15.59840505,231.89,231.81,13.44220505]
[1732654599387,13.44220505,231.86,231.78,13.44220505]
[1732654599689,13.44220505,231.87,231.79,13.44220505]
[1732654599878,37.21908905,231.88,231.8,13.44220505]
[1732654600180,23.776884,231.88,231.77,4.3145]
[1732654600383,23.776884,231.85,231.78,13.44220505]
[1732654600562,59.03798905,231.85,231.77,13.44220505]
[1732654600763,45.595784,231.85,231.79,13.44220505]
[1732654601065,59.03798905,231.85,231.78,13.44220505]
[1732654601260,58.53798905,231.85,231.78,13.44220505]
[1732654601465,13.44220505,231.83,231.75,13.44220505]
[1732654602271,5.0,231.92,231.81,13.44220505]
[1732654602484,13.44220505,231.87,231.8,13.44220505]
[1732654602687,13.44220505,231.88,231.81,13.44220505]
[1732654602864,7.5444,231.96,231.78,4.3143]
[1732654603065,12.5444,231.96,231.78,4.3143]
[1732654603292,13.44220505,231.9,231.83,13.44220505]
[1732654604482,2.1561,231.9,231.83,13.44220505]
[1732654605488,13.44220505,231.91,231.83,13.44220505]
[1732654605789,23.776884,231.91,231.84,13.44220505]
[1732654606386,13.44220505,231.9,231.84,13.44220505]
[1732654606576,13.44220505,231.9,231.79,4.3142]
[1732654606577,15.59830505,231.9,231.82,13.44220505]
[1732654606770,15.59830505,231.9,231.83,13.44220505]
[1732654607583,2.156,231.91,231.84,13.44220505]
[1732654607986,25.932684,231.93,231.86,13.44220505]
[1732654608183,13.44220505,231.92,231.86,13.44220505]
[1732654608568,13.44220505,231.94,231.86,13.44220505]
[1732654609079,15.59790505,231.94,231.86,13.44220505]
[1732654610387,15.59790505,231.94,231.81,10.7846]
[1732654610388,2.1557,231.94,231.87,13.44220505]
[1732654610572,13.44220505,231.95,231.87,13.44220505]
[1732654610778,23.776884,231.94,231.87,13.44220505]
[1732654611078,13.44220505,231.93,231.87,13.44220505]
[1732654611797,13.44220505,231.93,231.85,13.44220505]
[1732654611975,13.44220505,231.89,231.81,13.44220505]
[1732654612177,13.44220505,231.91,231.83,13.44220505]
[1732654612371,13.44220505,231.93,231.85,13.44220505]
[1732654613408,6.3283,231.9,231.75,15.1023]
[1732654613576,13.44220505,231.76,231.69,4.316]
[1732654613779,13.44220505,231.76,231.66,33.47250505]
[1732654613992,13.44220505,231.84,231.7,13.44220505]
[1732654613993,23.776884,231.8,231.7,13.44220505]
[1732654614291,13.44220505,231.78,231.7,13.44220505]
[1732654615183,13.44220505,231.77,231.68,13.44220505]
[1732654615502,13.44220505,231.77,231.7,13.44220505]
[1732654616404,13.44220505,231.77,231.68,13.44220505]
[1732654617390,13.44220505,231.77,231.68,17.75830505]
[1732654618306,13.44220505,231.75,231.68,17.75830505]
[1732654618499,13.44220505,231.73,231.66,33.47240505]
[1732654618683,13.44220505,231.75,231.66,33.47240505]
[1732654620203,5.0,231.82,231.64,13.44220505]
[1732654620204,13.44220505,231.71,231.64,13.44220505]
[1732654620397,13.44220505,231.67,231.6,15.7137]
[1732654620597,13.44220505,231.7,231.62,13.44220505]
[1732654621178,13.44220505,231.7,231.62,17.75940505]
[1732654621688,13.44220505,231.68,231.62,4.3172]
[1732654621882,13.44220505,231.67,231.6,20.0313]
[1732654622081,13.44220505,231.64,231.6,4.3176]
[1732654622302,13.44220505,231.66,231.6,4.3176]
[1732654622806,13.44220505,231.67,231.6,4.3176]
[1732654623111,13.44220505,231.65,231.6,4.3176]
[1732654623485,13.44220505,231.66,231.6,4.3176]
[1732654623897,13.44220505,231.68,231.6,17.75980505]
[1732654624392,13.44220505,231.67,231.6,4.3176]
[1732654624596,13.44220505,231.65,231.6,4.3176]
[1732654625100,23.776884,231.69,231.56,13.44220505]
[1732654625101,13.44220505,231.64,231.56,13.44220505]
[1732654625308,13.44220505,231.6,231.54,10.6177]
[1732654625506,13.44220505,231.56,231.5,4.3196]
[1732654625707,13.44220505,231.53,231.5,4.3196]
[1732654625997,5.0,231.64,231.48,10.5543]
[1732654625998,13.44220505,231.52,231.48,10.5543]
[1732654626205,23.776884,231.63,231.48,10.5543]
[1732654626407,13.44220505,231.56,231.48,23.99650505]
[1732654627189,13.44220505,231.56,231.49,13.44220505]
[1732654627388,13.44220505,231.57,231.5,13.44220505]
[1732654627601,2.1587,231.62,231.5,13.44220505]
[1732654627793,13.44220505,231.57,231.5,13.44220505]
[1732654628213,13.44220505,231.56,231.48,23.99650505]
[1732654628419,21.52985167,231.54,231.48,10.5543]
[1732654628714,21.52985167,231.53,231.48,4.3199]
[1732654629279,21.52985167,231.55,231.48,25.84975167]
[1732654629507,21.52985167,231.56,231.48,25.84975167]
[1732654630810,21.52985167,231.55,231.48,25.84975167]
[1732654631008,21.52985167,231.53,231.47,4.3201]
[1732654631309,21.52985167,231.52,231.47,4.3201]
[1732654631881,21.52985167,231.52,231.45,4.3204]
[1732654632207,26.52985167,231.6,231.45,4.3204]
[1732654632208,21.52985167,231.51,231.45,4.3204]
[1732654632400,21.52985167,231.5,231.45,4.3204]
[1732654632707,21.52985167,231.46,231.39,16.5277]
[1732654632882,24.4974,231.54,231.43,21.52985167]
[1732654633081,45.30673567,231.54,231.39,31.6534]
[1732654633886,5.60579727,231.55,231.49,21.52985167]
[1732654634298,21.52985167,231.54,231.46,21.52985167]
[1732654634507,21.52985167,231.53,231.47,4.3202]
[1732654635007,27.13564894,231.55,231.47,25.85005167]
[1732654635212,21.52985167,231.54,231.47,4.3202]
[1732654635407,27.13564894,231.55,231.47,25.85005167]
[1732654635619,7.76519727,231.55,231.4,4.3215]
[1732654635787,21.52985167,231.5,231.4,4.3215]
[1732654635986,21.52985167,231.53,231.45,21.52985167]
[1732654636709,21.52985167,231.54,231.47,21.52985167]
[1732654637014,21.52985167,231.54,231.46,25.85025167]
[1732654637417,21.52985167,231.5,231.46,4.3204]
[1732654637622,21.52985167,231.49,231.43,4.3209]
[1732654637993,21.52985167,231.5,231.43,4.3209]
[1732654638193,21.52985167,231.52,231.44,21.52985167]
[1732654638714,5.60579727,231.55,231.5,21.52985167]
[1732654639213,5.60579727,231.55,231.52,21.52985167]
[1732654639415,5.60579727,231.55,231.53,21.52985167]
[1732654639916,5.60579727,231.55,231.49,16.5277]
[1732654639917,5.60579727,231.55,231.49,38.05755167]
[1732654641015,5.60579727,231.55,231.5,4.3196]
[1732654641323,5.60579727,231.55,231.45,4.3205]
[1732654641324,21.52985167,231.51,231.45,4.3205]
[1732654641502,21.52985167,231.5,231.45,4.3205]
[1732654642023,21.52985167,231.52,231.45,4.3205]
[1732654642200,21.52985167,231.53,231.46,21.52985167]
[1732654642401,5.60579727,231.55,231.5,21.52985167]
[1732654642600,5.60579727,231.55,231.52,21.52985167]
[1732654642922,5.60579727,231.55,231.51,21.52985167]
[1732654643218,5.60579727,231.55,231.5,21.52985167]
[1732654643397,5.60579727,231.55,231.51,21.52985167]
[1732654644119,5.60579727,231.55,231.5,21.52985167]
[1732654644317,5.60579727,231.55,231.51,21.52985167]
[1732654644611,5.60579727,231.55,231.5,21.52985167]
[1732654644814,5.60579727,231.55,231.49,21.52985167]
[1732654645119,27.13564894,231.55,231.48,21.52985167]
[1732654645523,21.52985167,231.54,231.47,36.65055167]
[1732654645728,21.52985167,231.5,231.47,4.3202]
[1732654646026,21.52985167,231.51,231.47,4.3202]
[1732654646326,21.52985167,231.49,231.47,4.3202]
[1732654646499,21.52985167,231.49,231.44,4.3207]
[1732654646700,21.52985167,231.5,231.44,4.3207]
[1732654647126,21.52985167,231.49,231.44,4.3207]
[1732654647423,21.52985167,231.5,231.44,4.3207]
[1732654647606,27.13564894,231.55,231.47,21.52985167]
[1732654647809,27.13564894,231.55,231.48,21.52985167]
[1732654648320,27.13564894,231.55,231.49,21.52985167]
[1732654648321,5.60579727,231.55,231.49,21.52985167]
[1732654648525,19.06054128,231.55,231.47,13.45474401]
[1732654649105,13.45474401,231.54,231.46,13.45474401]
[1732654649319,13.45474401,231.5,231.44,15.1226]
[1732654649622,13.45474401,231.51,231.44,28.57734401]
[1732654650202,13.45474401,231.5,231.44,15.1226]
[1732654650407,13.45474401,231.48,231.44,4.3207]
[1732654650809,13.45474401,231.5,231.44,4.3207]
[1732654651028,2.1595,231.54,231.44,4.3207]
[1732654651029,13.45474401,231.49,231.44,4.3207]
[1732654651407,13.45474401,231.5,231.44,4.3207]
[1732654651725,13.45474401,231.49,231.44,4.3207]
[1732654651903,13.45474401,231.47,231.44,4.3207]
[1732654652108,13.45474401,231.47,231.43,20.4506]
[1732654652299,13.45474401,231.47,231.43,4.3209]
[1732654653333,13.45474401,231.47,231.4,24.25814401]
[1732654653629,13.45474401,231.46,231.41,4.3213]
[1732654654327,13.45474401,231.46,231.4,15.1249]
[1732654654528,13.45474401,231.47,231.4,28.57964401]
[1732654654843,13.45474401,231.47,231.4,15.1249]
[1732654655032,13.45474401,231.46,231.4,15.1249]
[1732654655531,13.45474401,231.47,231.4,15.1249]
[1732654655827,13.45474401,231.46,231.4,4.3215]
[1732654656808,13.45474401,231.45,231.4,4.3215]
[1732654657111,13.45474401,231.45,231.38,4.3218]
[1732654658426,13.45474401,231.44,231.38,4.3218]
[1732654658730,13.45474401,231.41,231.38,4.3218]
[1732654658932,13.45474401,231.42,231.38,4.3218]
[1732654659127,13.45474401,231.45,231.38,4.3218]
[1732654659329,13.45474401,231.42,231.35,13.45474401]
[1732654660214,37.23162801,231.43,231.35,13.45474401]
[1732654660414,13.45474401,231.48,231.41,13.45474401]
[1732654660621,13.45474401,231.5,231.42,13.45474401]
[1732654660832,13.45474401,231.47,231.39,13.45474401]
[1732654661014,13.45474401,231.48,231.4,13.45474401]
[1732654661414,13.45474401,231.48,231.41,4.3213]
[1732654661726,13.45474401,231.48,231.41,17.77604401]
[1732654661925,15.61474401,231.48,231.41,17.77604401]
[1732654662118,15.61474401,231.48,231.41,4.3213]
[1732654662730,13.45474401,231.46,231.41,4.3213]
[1732654662931,13.45474401,231.46,231.4,4.3215]
[1732654665612,23.776884,231.45,231.39,13.45474401]
[1732654665935,13.45474401,231.45,231.39,13.45474401]
[1732654666335,13.45474401,231.45,231.38,13.45474401]
[1732654666541,13.45474401,231.46,231.39,13.45474401]
[1732654666722,37.23162801,231.47,231.39,13.45474401]
[1732654667235,37.23162801,231.47,231.4,4.3215]
[1732654667414,23.776884,231.47,231.4,17.77624401]
[1732654668120,13.45474401,231.47,231.4,17.77624401]
[1732654668443,23.776884,231.48,231.4,17.77624401]
[1732654668444,13.45474401,231.46,231.4,4.3215]
[1732654669324,23.776884,231.48,231.41,13.45474401]
[1732654669527,13.45474401,231.47,231.4,17.77624401]
[1732654670513,13.45474401,231.45,231.38,4.3217]
[1732654670814,13.45474401,231.42,231.38,4.3217]
[1732654671147,13.45474401,231.44,231.38,4.3217]
[1732654671527,13.45474401,231.44,231.35,10.8061]
[1732654671528,13.45474401,231.44,231.37,17.77674401]
[1732654672029,13.45474401,231.44,231.37,4.322]
[1732654672418,13.45474401,231.43,231.37,4.322]
[1732654673114,13.45474401,231.41,231.37,4.322]
[1732654673442,13.45474401,231.43,231.36,13.45474401]
[1732654673733,13.45474401,231.42,231.34,13.45474401]
[1732654674243,2.1601,231.47,231.33,4.3228]
[1732654674244,13.45474401,231.4,231.33,4.3228]
[1732654674639,13.45474401,231.39,231.33,4.3228]
[1732654675527,13.45474401,231.38,231.33,4.3228]
[1732654675733,37.23162801,231.4,231.33,4.3228]
[1732654676242,13.45474401,231.39,231.33,4.3228]
[1732654676436,13.45474401,231.4,231.33,17.77754401]
[1732654677051,37.23162801,231.41,231.33,17.77754401]
[1732654678644,13.45474401,231.4,231.33,17.77754401]
[1732654679051,13.45474401,231.39,231.33,4.3228]
[1732654680327,13.45474401,231.35,231.27,13.45474401]
[1732654680523,13.45474401,231.36,231.29,13.45474401]
[1732654680754,13.45474401,231.38,231.31,17.77794401]
[1732654680947,13.45474401,231.38,231.31,4.3232]
[1732654681180,13.45474401,231.36,231.31,4.3232]
[1732654681854,13.45474401,231.37,231.31,4.3232]
[1732654682636,13.45474401,231.36,231.3,4.3233]
[1732654682840,13.45474401,231.35,231.28,17.77834401]
[1732654683036,13.45474401,231.34,231.28,4.3236]
[1732654683556,2.1607,231.4,231.24,4.3243]
[1732654683557,13.45474401,231.29,231.24,4.3243]
[1732654683926,13.45474401,231.29,231.23,4.8440559]
[1732654684126,23.776884,231.33,231.23,4.8440559]
[1732654684127,13.45474401,231.28,231.23,0.5194559]
[1732654684325,13.45474401,231.27,231.23,0.5194559]
[1732654684546,13.45474401,231.26,231.23,0.5194559]
[1732654685054,13.45474401,231.27,231.23,0.5194559]
[1732654685856,37.23162801,231.28,231.23,0.5194559]
[1732654686023,13.45474401,231.28,231.23,0.5194559]
[1732654686749,13.45474401,231.26,231.23,0.5194559]
[1732654686961,13.45474401,231.25,231.23,0.5194559]
[1732654687253,13.45474401,231.26,231.23,0.5194559]
[1732654687558,13.45474401,231.24,231.23,0.5194559]
[1732654687761,13.45474401,231.25,231.23,0.5194559]
[1732654689144,13.45474401,231.24,231.23,0.5194559]
[1732654691829,15.61694401,231.24,231.23,0.5194559]
[1732654692336,13.45474401,231.24,231.23,0.5194559]
[1732654693660,26.90948802,231.24,231.23,0.5194559]
[1732654693845,20.0,231.21,231.1,4.3271]
[1732654694058,13.45474401,231.14,231.1,4.3271]
[1732654694234,13.45474401,231.15,231.1,4.3271]
[1732654695056,13.45474401,231.16,231.1,4.3271]
[1732654695757,13.45474401,231.15,231.1,4.3271]
[1732654695934,13.45474401,231.14,231.1,4.3271]
[1732654696535,13.45474401,231.12,231.04,24.27534401]
[1732654696737,13.45474401,231.1,231.01,15.1508]
[1732654696934,13.45474401,231.13,231.05,13.45474401]
[1732654697161,13.45474401,231.11,231.04,13.45474401]
[1732654697735,16.0335,231.19,231.04,13.45474401]
[1732654697736,13.45474401,231.12,231.04,13.45474401]
[1732654697962,13.45474401,231.15,231.08,13.45474401]
[1732654698347,13.45474401,231.14,231.07,13.45474401]
[1732654698961,13.45474401,231.14,231.06,13.45474401]
[1732654699347,13.45474401,231.14,231.07,4.3276]
[1732654699666,13.45474401,231.11,231.07,4.3276]
[1732654700367,13.45474401,231.09,231.07,4.3276]
[1732654700546,13.45474401,231.11,231.07,4.3276]
[1732654700861,13.45474401,231.11,231.05,4.328]
[1732654701159,13.45474401,231.12,231.05,4.328]
[1732654702643,13.45474401,231.12,231.05,17.78274401]
[1732654703239,13.45474401,231.12,231.04,13.45474401]
[1732654703463,13.45474401,231.11,231.03,13.45474401]
[1732654703652,13.45474401,231.12,231.04,13.45474401]
[1732654703856,13.45474401,231.11,231.03,13.45474401]
[1732654704061,13.45474401,231.12,231.04,13.45474401]
[1732654704236,23.776884,231.09,231.03,13.45474401]
[1732654704560,37.23162801,231.09,231.01,17.78354401]
[1732654704768,13.45474401,231.06,231.01,4.3288]
[1732654704961,13.45474401,231.05,231.01,4.3288]
[1732654705153,13.45474401,231.04,231.01,4.3288]
[1732654705361,13.45474401,231.05,231.01,4.3288]
[1732654705574,23.776884,231.05,231.01,4.3288]
[1732654705863,13.45474401,231.03,231.0,0.5194559]
[1732654706454,8.65148325,231.03,231.0,0.5194559]
[1732654706960,8.65148325,231.02,231.0,0.5194559]
[1732654707139,23.776884,231.03,231.0,0.5194559]
[1732654707574,32.42836725,231.03,231.0,0.5194559]
[1732654707778,8.65148325,231.02,231.0,0.5194559]
[1732654708565,37.30033229,231.01,231.0,0.5194559]
[1732654711354,37.30033229,231.01,231.0,1.2894559]
[1732654714761,23.776884,231.01,231.0,1.2894559]
[1732654715257,37.30033229,231.01,231.0,1.2894559]
[1732654715981,23.776884,231.01,231.0,1.2894559]
[1732654716271,37.30033229,231.01,231.0,1.2894559]
[1732654717069,23.776884,231.01,231.0,1.2894559]
[1732654717268,13.52344829,231.09,231.0,19.14190419]
[1732654717477,13.52344829,231.1,231.03,13.52344829]
[1732654717771,13.52344829,231.1,231.0,5.6184559]
[1732654717772,13.52344829,231.09,231.02,13.52344829]
[1732654718149,2.1633,231.12,231.0,5.6184559]
[1732654718150,13.52344829,231.08,231.01,14.02344829]
[1732654718349,13.52344829,231.07,231.01,0.5]
[1732654718551,13.52344829,231.04,231.01,0.5]
[1732654718770,13.52344829,231.03,231.01,0.5]
[1732654718957,13.52344829,231.04,231.01,0.5]
[1732654719156,13.52344829,231.02,231.01,0.5]
[1732654719472,37.30033229,231.02,231.01,0.5]
[1732654720474,37.30033229,231.02,231.0,1.2894559]
[1732654720475,55.82378058,231.02,231.0,1.2894559]
[1732654720775,25.441284,231.01,231.0,1.2894559]
[1732654721083,38.96473229,231.01,231.0,1.2894559]
[1732654721255,43.96473229,231.01,231.0,1.2894559]
[1732654721579,57.48818058,231.01,231.0,1.2894559]
[1732654722091,38.96473229,231.01,231.0,1.2894559]
[1732654723768,15.68784829,231.01,231.0,1.2894559]
[1732654724959,39.46473229,231.01,231.0,1.2894559]
[1732654726362,37.30033229,231.01,231.0,1.2894559]
[1732654727078,13.52344829,231.03,231.0,1.2894559]
[1732654727286,2.164,231.06,231.01,4.3288]
[1732654727287,13.52344829,231.06,231.01,4.3288]
[1732654727482,13.52344829,231.06,231.0,1.2894559]
[1732654727981,13.52344829,231.04,231.0,1.2894559]
[1732654728286,13.52344829,231.05,231.0,1.2894559]
[1732654728587,23.776884,231.04,231.0,5.6183559]
[1732654728979,13.52344829,231.04,231.0,5.6183559]
[1732654730081,23.776884,231.03,231.0,5.6183559]
[1732654730763,20.0,231.1,231.0,5.6183559]
[1732654730963,13.52344829,231.04,231.0,1.2894559]
[1732654731178,13.52344829,231.02,231.0,1.2894559]
[1732654731361,13.52344829,231.03,231.0,5.6183559]
[1732654731557,20.0,231.1,231.0,5.6183559]
[1732654731975,23.776884,231.09,231.0,5.6183559]
[1732654732185,13.52344829,231.07,231.0,19.14180419]
[1732654732687,13.52344829,231.11,231.04,13.52344829]
[1732654732895,2.1622,231.24,231.1,13.52344829]
[1732654733180,13.52344829,231.18,231.11,13.52344829]
[1732654733380,13.52344829,231.18,231.12,16.1437]
[1732654733561,2.1622,231.24,231.12,29.66714829]
[1732654733562,13.52344829,231.19,231.12,29.66714829]
[1732654733762,13.52344829,231.2,231.13,13.52344829]
[1732654734084,13.52344829,231.2,231.14,4.3263]
[1732654734299,13.52344829,231.22,231.14,4.3263]
[1732654734465,13.52344829,231.23,231.16,13.52344829]
[1732654734664,13.52344829,231.22,231.15,13.52344829]
[1732654735371,13.52344829,231.22,231.16,4.326]
[1732654735578,13.52344829,231.21,231.16,4.326]
[1732654736164,13.52344829,231.22,231.16,4.326]
[1732654736387,23.776884,231.21,231.16,4.326]
[1732654737084,37.30033229,231.21,231.16,4.326]
[1732654737781,23.776884,231.21,231.14,4.3262]
[1732654738007,37.30033229,231.16,231.12,22.3803]
[1732654738176,13.52344829,231.18,231.12,22.3803]
[1732654738487,13.52344829,231.19,231.13,4.3265]
[1732654739492,13.78344829,231.21,231.14,13.52344829]
[1732654740694,13.52344829,231.18,231.13,4.3265]
[1732654741187,13.52344829,231.2,231.13,17.84994829]
[1732654741590,24.036884,231.21,231.15,17.84954829]
[1732654741767,13.52344829,231.18,231.15,4.3261]
[1732654741970,13.52344829,231.2,231.15,4.3261]
[1732654742794,13.52344829,231.17,231.12,22.3803]
[1732654743288,13.52344829,231.19,231.12,40.23044829]
[1732654743466,13.52344829,231.2,231.13,13.52344829]
[1732654743666,13.52344829,231.2,231.14,4.3263]
[1732654743882,13.52344829,231.15,231.12,16.1437]
[1732654744188,13.52344829,231.13,231.12,16.1437]
[1732654744489,23.776884,231.12,231.06,6.2902]
[1732654744672,13.52344829,231.08,231.06,6.2902]
[1732654744874,13.52344829,231.08,231.05,15.39]
[1732654745387,13.52344829,231.06,231.05,15.39]
[1732654745570,13.52344829,231.06,231.02,6.2902]
[1732654745890,13.52344829,231.03,231.0,16.6794559]
[1732654746190,13.52344829,231.02,231.0,16.6794559]
[1732654746380,23.776884,231.1,231.0,1.2894559]
[1732654746381,13.52344829,231.01,231.0,1.2894559]
[1732654747390,37.30033229,231.01,231.0,1.2894559]
[1732654749972,0.5,231.09,231.0,1.2894559]
[1732654750178,13.52344829,231.05,231.0,1.2894559]
[1732654750472,2.1632,231.13,231.02,13.52344829]
[1732654750670,2.1632,231.13,231.0,21.0083559]
[1732654750902,13.52344829,231.11,231.03,13.52344829]
[1732654751103,13.52344829,231.08,231.0,30.20290419]
[1732654751403,13.52344829,231.05,231.0,16.6794559]
[1732654751695,13.52344829,231.04,231.0,16.6794559]
[1732654751997,13.52344829,231.01,231.0,1.2894559]
[1732654752181,37.30033229,231.01,231.0,1.2894559]
[1732654754202,52.98818058,231.01,231.0,1.2894559]
[1732654754503,23.776884,231.01,231.0,1.2894559]
[1732654755281,0.5,231.04,231.0,1.2894559]
[1732654755484,26.440984,231.04,231.0,1.2894559]
[1732654755705,26.440984,231.04,230.89,6.2902]
[1732654755706,30.940984,231.04,230.89,6.2902]
[1732654755891,21.64660828,230.95,230.89,6.2902]
[1732654756093,21.64660828,230.93,230.89,6.2902]
[1732654756391,23.776884,230.94,230.89,6.2902]
[1732654756901,23.776884,230.94,230.88,15.39]
[1732654758015,21.64660828,230.93,230.88,15.39]
[1732654758179,21.64660828,230.91,230.88,15.39]
[1732654758507,21.64660828,230.9,230.84,4.3318]
[1732654758684,21.64660828,230.9,230.83,6.2902]
[1732654758879,21.64660828,230.88,230.83,10.6223]
[1732654759080,21.64660828,230.89,230.83,6.2902]
[1732654759279,21.64660828,230.88,230.83,6.2902]
[1732654759578,25.941984,230.94,230.82,16.6495]
[1732654759579,21.64660828,230.86,230.82,16.6495]
[1732654759791,21.64660828,230.85,230.82,16.6495]
[1732654759999,21.64660828,230.86,230.82,16.6495]
[1732654760200,23.776884,230.88,230.82,38.29610828]
[1732654760410,21.64660828,230.86,230.82,16.6495]
[1732654760580,21.64660828,230.87,230.82,16.6495]
[1732654760781,23.776884,230.92,230.82,20.9818]
[1732654760977,0.5,230.95,230.82,20.9818]
[1732654760978,20.0,230.91,230.82,20.9818]
[1732654761177,0.26,230.86,230.82,20.9818]
[1732654761801,0.26,230.86,230.83,21.64660828]
[1732654762005,21.90660828,230.86,230.82,16.6495]
[1732654763096,21.90660828,230.86,230.79,21.64660828]
[1732654763304,24.036884,230.86,230.8,21.64660828]
[1732654763607,0.26,230.86,230.77,22.2659559]
[1732654763808,0.26,230.86,230.8,20.0]
[1732654763994,0.26,230.86,230.81,4.3325]
[1732654764303,0.26,230.86,230.85,38.29610828]
[1732654764500,0.26,230.86,230.85,44.87630828]
[1732654765013,21.64660828,230.97,230.85,44.87630828]
[1732654765301,21.64660828,230.95,230.88,21.64660828]
[1732654765509,21.64660828,230.91,230.85,23.2297]
[1732654765804,23.776884,230.99,230.85,23.2297]
[1732654765983,21.64660828,230.91,230.85,23.2297]
[1732654766384,21.64660828,230.92,230.85,23.2297]
[1732654766584,21.64660828,230.92,230.85,44.87630828]
[1732654766785,21.64660828,230.88,230.85,23.2297]
[1732654767002,21.64660828,230.89,230.85,23.2297]
[1732654767213,13.0763,230.98,230.85,23.2297]
[1732654767504,23.776884,230.94,230.88,21.64660828]
[1732654767896,23.776884,230.95,230.88,21.64660828]
[1732654768104,21.64660828,230.94,230.87,25.97780828]
[1732654768603,21.64660828,230.9,230.85,23.2297]
[1732654768986,27.577,230.96,230.81,21.64660828]
[1732654769200,23.776884,230.89,230.8,16.6495]
[1732654769711,21.64660828,230.82,230.8,16.6495]
[1732654769894,21.64660828,230.83,230.8,16.6495]
[1732654770209,21.64660828,230.83,230.77,0.5194559]
[1732654770389,23.776884,230.89,230.77,0.5194559]
[1732654770390,25.942384,230.89,230.77,4.8526559]
[1732654770584,23.776884,230.86,230.77,4.8526559]
[1732654770887,23.776884,230.87,230.81,21.64660828]
[1732654771239,21.64660828,230.91,230.84,21.64660828]
[1732654771414,7.58936089,230.91,230.87,21.64660828]
[1732654771910,7.58936089,230.91,230.78,23.776884]
[1732654772109,7.58936089,230.91,230.84,22.8234]
[1732654772407,7.58936089,230.91,230.89,21.64660828]
[1732654772586,7.58936089,230.91,230.87,21.64660828]
[1732654772902,21.64660828,230.9,230.84,22.8234]
[1732654773113,21.64660828,230.88,230.84,22.8234]
[1732654773286,7.58936089,230.91,230.84,22.8234]
[1732654773607,23.776884,230.9,230.84,22.8234]
[1732654774112,23.776884,230.9,230.85,4.3318]
[1732654774403,7.58936089,230.91,230.85,25.97840828]
[1732654774605,7.58936089,230.91,230.86,21.64660828]
[1732654774785,7.58936089,230.91,230.87,21.64660828]
[1732654775000,7.58936089,230.91,230.88,21.64660828]
[1732654775193,7.58936089,230.91,230.86,21.64660828]
[1732654775402,7.58936089,230.91,230.85,4.3318]
[1732654775589,7.58936089,230.91,230.87,20.0]
[1732654776187,7.58936089,230.91,230.88,24.3312]
[1732654776409,2.1636,231.09,230.93,26.1283]
[1732654776711,21.64660828,231.06,230.98,21.64660828]
[1732654777009,21.64660828,231.01,230.93,47.77490828]
[1732654777217,21.64660828,230.98,230.93,6.1283]
[1732654777395,2.1636,231.09,230.93,6.1283]
[1732654777711,2.1635,231.11,230.93,6.1283]
[1732654777917,1.36926909,231.13,230.96,20.0]
[1732654777918,3.53256909,231.13,230.96,20.0]
[1732654778209,6.4173,231.16,230.96,20.0]
[1732654778411,21.64660828,231.08,231.01,21.64660828]
[1732654778599,21.64660828,231.07,230.99,21.64660828]
[1732654778915,21.64660828,231.06,230.99,21.64660828]
[1732654779213,23.776884,231.14,231.0,21.64660828]
[1732654779509,43.776884,231.12,230.98,4.3293]
[1732654780208,10.407,231.19,230.98,4.3293]
[1732654780209,6.4173,231.21,230.99,15.4644]
[1732654780414,21.64660828,231.15,231.08,21.64660828]
[1732654780591,21.64660828,231.17,231.09,21.64660828]
[1732654780790,21.64660828,231.15,231.08,21.64660828]
[1732654780993,21.64660828,231.18,231.1,21.64660828]
[1732654781208,21.64660828,231.16,231.08,21.64660828]
[1732654781523,21.64660828,231.17,231.09,21.64660828]